Cogmind - Beta 17 @@@ ROGUE MODE // 2026.06.24 @ 14:07:21 Player: pinbox Result: Destroyed by S-10 Pest with Light Assault Rifle Performance ------------- Evolutions (0) 0 Regions Visited (3) 600 Robots Destroyed (10) 50 Value Destroyed (342) 342 Prototype IDs (2) 40 Alien Tech Used (0) 0 Bonus (7) 7 TOTAL SCORE: 1039 Bonus ------- Follower Combat Kills 7 Cogmind --------- Core Integrity 0/250 Matter 16/300 Energy 44/100 System Corruption 8% Temperature Cool (0) Movement Walking (120) Location -10/Subcaves Parts ------- > --- POWER (1) -------- (None) > --- PROPULSION (2) --- Aluminum Leg Carbon-fiber Leg > --- UTILITY (2) ------ Targeting Computer Targeting Computer > --- WEAPON (2) ------- Riot Gun Beamcaster (fused) > --- INVENTORY (5) ---- Subdweller Monowheel Improved Heat Sink Seismic Detector Targeting Computer Grenade Launcher Peak State ------------ > --- POWER ------------ (None) > --- PROPULSION ------- Aluminum Leg Carbon-fiber Leg > --- UTILITY ---------- Targeting Computer Targeting Computer > --- WEAPON ----------- Riot Gun Beamcaster > --- INVENTORY -------- Subdweller Monowheel Improved Heat Sink Seismic Detector Targeting Computer Grenade Launcher [Rating: 14] Favorites ----------- Power Light Nuclear Core Engine Ion Engine Power Core Light Nuclear Core Propulsion Aluminum Leg Leg Aluminum Leg Utility Small Storage Unit Device Terrain Scanner Storage Small Storage Unit Processor Targeting Computer Weapon Medium Laser Energy Gun Medium Laser Ballistic Gun Light Assault Rifle Launcher Grenade Launcher Build | -11 -10 -10 -10 ------- Run | Yrd Mat Min Sub Slots Evolved . | . . . . Power . | . . . . Propulsion . | . . . . Utility . | . . . . Weapon . | . . . . Parts Attached 21 | 6 6 1 8 Power 3 | 1 1 . 1 Engine 2 | 1 . . 1 Core 1 | . 1 . . Reactor . | . . . . Propulsion 5 | 2 2 . 1 Treads . | . . . . Leg 5 | 2 2 . 1 Wheel . | . . . . Hover . | . . . . Flight . | . . . . Utility 5 | 1 2 . 2 Device 2 | . 2 . . Storage 1 | 1 . . . Processor 2 | . . . 2 Hackware . | . . . . Protection . | . . . . Artifact . | . . . . Weapon 8 | 2 1 1 4 Energy Gun 5 | 2 . . 3 Energy Cannon . | . . . . Ballistic Gun 2 | . 1 1 . Ballistic Cannon . | . . . . Launcher 1 | . . . 1 Special Weapon . | . . . . Impact Weapon . | . . . . Slashing Weapon . | . . . . Piercing Weapon . | . . . . Special Melee Weapon . | . . . . Unidentified Prototypes . | . . . . Parts Lost 8 | . . . 8 Power 1 | . . . 1 Propulsion 3 | . . . 3 Utility 2 | . . . 2 Weapon 2 | . . . 2 Highest Loss Streak 8 | . . . 8 To Critical Strikes . | . . . . Average Backups 5 | 2 5 7 5 Power . | . . . . Propulsion 1 | 1 2 2 1 Utility 2 | . 1 4 3 Weapon 1 | . 1 1 . Tool/Special . | . . . . Unused Backups 8 | 1 3 . 4 Power 1 | . 1 . . Propulsion 4 | 1 2 . 1 Utility 3 | . . . 3 Weapon . | . . . . Tool/Special . | . . . . Average Slot Usage (%) 90 | . 92 100 86 Engine 2 | . 5 . . Core 8 | . 8 14 7 Leg 26 | . 28 28 25 Device 8 | . 7 14 8 Storage 11 | . 13 14 8 Processor 4 | . . . 9 Energy Gun 14 | . 25 3 6 Ballistic Gun 10 | . 2 24 15 Launcher 1 | . . . 2 Peak Build Rating 14 | 6 9 9 14 Average Rating 8 | 4 7 8 8 On Entrance 6 | . 6 9 9 Avg Prop Armor Cover (%) . | . . . . Naked Turns . | . . . . Heaviest Build 15 | 14 15 14 13 Greatest Support 25 | 20 20 20 25 Greatest Overweight (x) 1 | . . . 1 Average Overweight (x) . | . . . . Largest Inventory Capacity 8 | 8 8 8 8 Average Capacity 7 | 6 7 8 6 Most Carried 8 | 6 8 7 7 Average Carried 5 | 2 5 7 5 Final Capacity 8 | 8 8 8 5 Final Carried 7 | 4 7 7 5 Class Distribution -------------------- 100% | Mutant Dominant Class ---------------- Mutant | -10/Materials Mutant | -10/Mines Mutant | -10/Subcaves Resources | -11 -10 -10 -10 ----------- Run | Yrd Mat Min Sub Matter Collected 309 | . 183 . 126 Remotely . | . . . . Salvage Created 263 | . 183 30 50 Parts 14 | . 7 3 4 Haulers Intercepted . | . . . . Recyclers Shooed . | . . . . Parts Field Recycled . | . . . . Retrieved Matter . | . . . . Parts Self-Destructed 9 | . . . 9 Prevented . | . . . . Parts Restored . | . . . . Kills | -11 -10 -10 -10 ------- Run | Yrd Mat Min Sub Combat Hostiles Destroyed 10 | . 4 2 4 Guns 6 | . 4 2 . AOE 4 | . . . 4 Classes Destroyed 3 | . 1 1 1 Swarmer 2 | . . 2 . Grunt 4 | . 4 . . Subdweller 4 | . . . 4 Best Kill Streak 4 | . 2 2 4 Combat Bots Only 4 | . 2 2 4 Max Kills in Single Turn 1 | . 1 1 1 Gunslinging . | . . . . Exploded 1 | . . . 1 Melee . | . . . . Uniques/NPCs Destroyed . | . . . . Combat | -11 -10 -10 -10 -------- Run | Yrd Mat Min Sub Hostile Shots Fired 80 | . 19 4 57 Missed 32 | . 6 2 24 Hits 48 | . 13 2 33 Projectile 48 | . 13 2 33 Critical Strikes 1 | . . . 1 Damage Taken 1216 | . 223 17 976 Core 258 | . 67 8 183 Absorbed by Shields . | . . . . Core Remaining (%) 100 | 100 . . . Volleys Fired 48 | . 21 4 23 Largest 2 | . 2 2 2 Hottest 125 | . 100 70 125 Shots Fired 76 | . 38 8 30 Gun 60 | . 38 8 14 Cannon . | . . . . Launcher 16 | . . . 16 Special . | . . . . Kinetic 14 | . . 4 10 Thermal 44 | . 38 4 2 Explosive 16 | . . . 16 Electromagnetic 2 | . . . 2 Robot Hit Streak 13 | . 10 2 13 Robot Miss Streak 2 | . 2 1 2 Penetration Max . | . . . . Secondary Targets 1 | . . 1 . Max Gunslinging Chain 1 | . . 1 . Shots Hit Robots 57 | . 27 4 26 Core Hits 24 | . 11 3 10 Critical Kills . | . . . . Critical Parts Destroyed . | . . . . Critical Strikes . | . . . . Melee Attacks . | . . . . Impact . | . . . . Slashing . | . . . . Piercing . | . . . . Sneak Attacks . | . . . . Combat Hostiles . | . . . . Follow-up Attacks . | . . . . Damage Inflicted 1178 | . 339 38 801 Guns 490 | . 335 38 117 Cannons . | . . . . Explosions 684 | . . . 684 Melee . | . . . . Ramming 4 | . 4 . . Kinetic 82 | . . 14 68 Thermal 400 | . 335 24 41 Explosive 684 | . . . 684 Electromagnetic 8 | . . . 8 Impact . | . . . . Slashing . | . . . . Piercing . | . . . . Highest Corruption 8 | . . . 8 Average Corruption 8 | . . . 8 Corruption Purged . | . . . . Corruption Blocked . | . . . . Effects 6 | . . . 6 Matter Fused 1 | . . . 1 Heat Flow Errors 2 | . . . 2 Energy Discharges 1 | . . . 1 Parts Fused 1 | . . . 1 Data Loss (minor) 1 | . . . 1 Overload Shots . | . . . . Overflow Damage . | . . . . Projectiles . | . . . . Explosions . | . . . . Melee . | . . . . Knockbacks . | . . . . Impact . | . . . . Kinetic . | . . . . Secondary . | . . . . Self-Inflicted Damage 98 | . . . 98 Shots 5 | . . . 5 Rammed . | . . . . Targets Rammed 2 | . 2 . . Kicked 2 | . 2 . . Crushed . | . . . . Highest Temperature 558 | . 558 100 198 Average Temperature 207 | . 240 52 92 Received Heat Transfer 153 | . 96 . 57 Effects 9 | . 9 . . Shutdowns 1 | . 1 . . Energy Bleed 1 | . 1 . . Interference 2 | . 2 . . Matter Decay 2 | . 2 . . Damage (minor) 2 | . 2 . . Damage (core) 1 | . 1 . . Siege Activations . | . . . . Martial Activations . | . . . . Shielding Activations . | . . . . Robots Disrupted . | . . . . Combat Hostiles . | . . . . Robots Corrupted . | . . . . Combat Hostiles . | . . . . Parts Fried . | . . . . Impact Corruptions . | . . . . Robots Melted . | . . . . Combat Hostiles . | . . . . Parts Melted 4 | . 4 . . Heat Transferred 1147 | . 999 74 74 Parts Sabotaged . | . . . . Parts Stolen . | . . . . Parts Stripped . | . . . . Power Chain Reactions . | . . . . Alert | -11 -10 -10 -10 ------- Run | Yrd Mat Min Sub Maximum Alert Level . | . . . . Low Security (%) 100 | 100 100 100 . Level 1 . | . . . . Level 2 . | . . . . Level 3 . | . . . . Level 4 . | . . . . Level 5 . | . . . . High Security . | . . . . Max Security . | . . . . Peak Influence 78 | . 40 78 . Initial . | . . . . Average 17 | . 12 47 . Influence Increases 218 | . 110 78 30 Destroy 0b10 Robot/C 140 | . 80 60 . Destroy Leader 30 | . 20 10 . Allied During Kill 8 | . . 8 . Successful Hack 10 | . 10 . . Lose Combat Pursuer 30 | . . . 30 Influence Decreases 198 | . 110 50 38 Entered New Map 16 | . . . 16 Time Decay 182 | . 110 50 22 Squads Dispatched . | . . . . Investigation . | . . . . Extermination . | . . . . Reinforcement . | . . . . Assault . | . . . . Garrison . | . . . . Intercept . | . . . . Searches Triggered . | . . . . Construction Impeded . | . . . . Haulers Reinforced . | . . . . Active Scanning Responses . | . . . . Cargo Convoy Interrupts . | . . . . Stealth | -11 -10 -10 -10 --------- Run | Yrd Mat Min Sub Distress Signals 1 | . 1 . . Communications Jammed . | . . . . Distress Signals . | . . . . Times Spotted 18 | . 5 2 11 Peak Tracking Total 6 | . 3 3 6 Tactical Retreats 1 | . . . 1 Traps | -11 -10 -10 -10 ------- Run | Yrd Mat Min Sub Traps Triggered 2 | . . . 2 Indirectly . | . . . . Trap Hack Attempts . | . . . . Triggered . | . . . . Disarmed . | . . . . Reprogrammed . | . . . . Reused . | . . . . Traps Extracted . | . . . . Installed . | . . . . Triggered . | . . . . Machines | -11 -10 -10 -10 ---------- Run | Yrd Mat Min Sub Machines Disabled . | . . . . Max in Single Turn . | . . . . Machines Repaired . | . . . . Machines Dismantled . | . . . . Machines Sabotaged . | . . . . Overloaded Fab Kills . | . . . . Hacking | -11 -10 -10 -10 --------- Run | Yrd Mat Min Sub Machines Accessed 4 | . 4 . . Terminals 3 | . 3 . . Fabricators . | . . . . Repair Stations . | . . . . Recycling Units 1 | . 1 . . Scanalyzers . | . . . . Garrison Access . | . . . . Total Hacks 13 | . 13 . . Successful 4 | . 4 . . Failed 9 | . 9 . . Catastrophic 1 | . 1 . . Database Lockouts . | . . . . Manual 3 | . 3 . . Terminals 8 | . 8 . . Fabricators . | . . . . Repair Stations . | . . . . Recycling Units 5 | . 5 . . Scanalyzers . | . . . . Garrison Access . | . . . . Terminal Hacks 3 | . 3 . . Robot Analysis 1 | . 1 . . Prototype ID Bank 1 | . 1 . . Emergency Access Points 1 | . 1 . . Fabricator Hacks . | . . . . Repair Station Hacks . | . . . . Recycling Unit Hacks 1 | . 1 . . Report Inventory 1 | . 1 . . Scanalyzer . | . . . . Garrison Access Hacks . | . . . . Unauthorized Hacks . | . . . . Terminals . | . . . . Fabricators . | . . . . Repair Stations . | . . . . Recycling Units . | . . . . Scanalyzers . | . . . . Garrison Access . | . . . . Data Cores Recovered . | . . . . Used . | . . . . Hacking Detections 4 | . 4 . . Full Trace Events . | . . . . Feedback Events . | . . . . Feedback Blocked . | . . . . Robot Schematics Acquired . | . . . . Robots Built . | . . . . Authchips . | . . . . Time . | . . . . Total Robot Build Rating . | . . . . Part Schematics Acquired . | . . . . Parts Built . | . . . . Authchips . | . . . . Time . | . . . . Total Part Build Rating . | . . . . Part Studies Acquired . | . . . . Parts Repaired . | . . . . Time . | . . . . Parts Recycled . | . . . . Recycled Matter . | . . . . Retrieved Matter . | . . . . Retrieved Components . | . . . . Parts Scanalyzed . | . . . . Part Schematics Acquired . | . . . . Parts Damaged . | . . . . Bothacking | -11 -10 -10 -10 ------------ Run | Yrd Mat Min Sub Used RIF Installer . | . . . . Robots Hacked . | . . . . Non-combat . | . . . . Combat . | . . . . Robot Hacks Applied . | . . . . Relay Couplers Released . | . . . . Fabnet Peak Effective % . | . . . . Robots Rewired . | . . . . Allies Hacked . | . . . . Hacks Repelled . | . . . . Allies | -11 -10 -10 -10 -------- Run | Yrd Mat Min Sub Total Allies 2 | . . 2 . Largest Group 2 | . . 2 2 Highest-Rated Group 46 | . . 46 46 Highest-Rated Ally 31 | . . 31 31 Total Orders . | . . . . Ally Attacks 8 | . . 5 3 Total Damage 107 | . . 85 22 Kills 1 | . . 1 . Allies Corrupted . | . . . . Allies Melted . | . . . . Intel | -11 -10 -10 -10 ------- Run | Yrd Mat Min Sub Active Infowar (turns) 392 | . 105 100 187 Terrain 392 | . 105 100 187 Robot Analysis Total 1 | . 1 . . Derelict Logs Recovered 1 | . . 1 . Drone Launches . | . . . . Drone Recoveries . | . . . . Exploration | -11 -10 -10 -10 ------------- Run | Yrd Mat Min Sub Turns Passed 836 | 76 328 100 332 Spaces Moved 545 | 52 207 73 213 Core 4 | 4 . . . Treads . | . . . . Legs 541 | 48 207 73 213 Wheels . | . . . . Hover . | . . . . Flight . | . . . . Fastest Speed 50 | 50 120 120 120 Average Speed 119 | 114 120 120 120 Slowest Speed 190 | 120 120 120 190 Overloaded Moves . | . . . . Propulsion Burnouts . | . . . . Robots Hopped . | . . . . Potential Cave-ins . | . . . . Cave-ins Triggered 1 | . . . 1 Exploration Rate (%) 18 | 4 40 13 16 Regions Visited 3 Branch Regions 2 Pre-discovered Areas 1 | . . 1 . Known Exits Taken . | . . . . Unknown Exits Taken 3 | 1 1 1 . Scrap Searched . | . . . . Spaces Dug . | . . . . Terrain Destroyed 55 | . . . 55 Melee . | . . . . Projectile . | . . . . AOE 55 | . . . 55 Terrain Rammed . | . . . . Walls Destroyed . | . . . . Machines Disabled . | . . . . Actions | -11 -10 -10 -10 --------- Run | Yrd Mat Min Sub Total 649 | 67 248 78 256 Wait 2 | . . . 2 Move 542 | 51 206 72 213 Hop . | . . . . Pick Up 17 | 7 5 . 5 Fast Attach 14 | 6 4 1 3 Attach 8 | . 1 . 7 Detach . | . . . . Swap 2 | . 2 . . Drop 14 | 3 7 1 3 Fire 48 | . 21 4 23 Melee . | . . . . Ram . | . . . . Kick 2 | . 2 . . Crush . | . . . . Escape Stasis . | . . . . Rewire . | . . . . Trap . | . . . . Miscellaneous . | . . . . Route ------- -11/Scrapyard -10/Materials -10/Mines -10/Subcaves History --------- Turn | Location | Event 6 | -11/Scrapyard | Discovered new exit (range 15) 77 | -11/Scrapyard | Entered Materials 306 | -10/Materials | Build established: Mutant 381 | -10/Materials | Discovered new exit (range 12) 405 | -10/Materials | Entered Mines 407 | -10/Mines | Learned location of Recycling (-9) 491 | -10/Mines | Discovered new exit (range 9) 505 | -10/Mines | Entered Subcaves 505 | -10/Subcaves | Accompanied by 2 allies 506 | -10/Subcaves | Approached by a straggling Scientist 510 | -10/Subcaves | Led the pair of lost Derelicts to an unsafe place 688 | -10/Subcaves | Crushed by falling debris 688 | -10/Subcaves | Core integrity fell below 50% 707 | -10/Subcaves | Core integrity fell below 20% 743 | -10/Subcaves | Lost 8 parts (1p3n2u2w) 763 | -10/Subcaves | Shifting Twisted Machinery released Sub. Monowheel 768 | -10/Subcaves | Shifting Twisted Machinery released Riot Gun 837 | -10/Subcaves | Destroyed by S-10 Pest with Light Assault Rifle Last Messages --------------- System corrupted: Matter fused (-6). The unstable cave ceiling collapses. Acquired 56 matter. Subatomizers dissect the Beamcaster. The unstable cave ceiling collapses. Acquired Carbon-fiber Leg. Acquired Beamcaster. Acquired Imp. Heat Sink. Dropped Grenade Launcher. Acquired Grenade Launcher. Sub. Monowheel falls loose from the Twisted Machinery. System corrupted: Beamcaster fused. Riot Gun falls loose from the Twisted Machinery. Acquired Sub. Monowheel. Dropped Med. Laser. Acquired Riot Gun. System corrupted: Component data lost. System corrupted: Heat flow error (+243). Destroyed Flight Unit. Map ----- +----------------------------------------------------+ | ?????????????# #######?# #????????? | | ???????????#?# ### ##????????? | | ?????????????## # #????????? | | ?????????????### # # #????????? | | ???????????????#### # # # #??????????? | | ??????????????????##### * #???????????? | | ??????????????????????## # ##&= ##???????????? | | ???????????????????????# ##??????????? | | ?????????????#?????????# # ##???#??#????? | | ???????????????????????## = ##????????????? | | ????????????????????????# ## ##???????????#?? | | ?????????????????????#??# # ###= ##?##?????????? | | ???????????????????###### #### = #????????????? | | ?????????????????### ##?# #?#??????????? | | ??????????????#??# ##### ^^ ##??????#????? | | ?????????????????# ### ^ ^#????????????? | | ?????????????????##### #### #????????????? | | ?????????????????????# #??## #???#??#?????? | | ?????????????###???### #???####????????????? | | ?????????????# #?## #???#???????????????? | | ?????????????# ## #???????????????????? | | ??????????????# "" #???????????????????? | | ??????????????# "" #??????"""??????????? | | ??????????????##"[ " ##?????" "#?????????? | | ???????????????# """ ##????? "#?????????? | | ???????????????# """" @##?????? ??????????? | | ??????????????# """ ## ##?????? ???????????? | | ?????????????#" ###### #?????? ????????????? | | ?????????????#" ## #?# #????? #????????????? | | ?????????????#" ## ## #?????= #????????????? | | ?????????????####?# s s##????% #????????????? | | ??????????????????## s ##### #????????????? | | ???????????????????# s ## #?????????????? | | ???????????????????#### #??????????????? | | ??????????????????????# #??????????????? | | ??????????????????????## ### # #??????????????? | | ???????????????????????###?### #??????????????? | | ?????????????????????????????## #??????????????? | | ??????????????????????????????# #??????????????? | | ??????????????????????????????# ##??????????????? | | ?????????????????????????????? #???????????????? | | ?????????????????????????????? #???????????????? | | ?????????????????????????????? #???????????????? | | ??????????????????????????????### ???????????????? | | ?????????????????????????????????#???????????????? | | ?????????????????????????????????????????????????? | | ?????????????????????????????????????????????????? | | ?????????????????????????????????????????????????? | | ?????????????????????????????????????????????????? | | ?????????????????????????????????????????????????? | +----------------------------------------------------+ Best States ------------- Heat Dissipation 35 Energy Generation 14 Energy Capacity 250 Matter Stores 153 Matter Capacity 300 Sight Range 16 Terrain Scan Range 14 Terrain Scan Density 10 Evasion (%) 55 Targeting Accuracy 10 Item Schematics ----------------- None Robot Schematics ------------------ None Fabricated ------------ Nothing Repaired ---------- Nothing Studied --------- None Alien Tech Used ----------------- None Achievements -------------- Do Not Disturb Challenges ------------ None Game ------ Seed ExoskeletonStructuralBooster Manual? 0 Play Time 00:14:05 Cumulative 7.5 hours Start 2026.06.24 @ 13:55:14 End 2026.06.24 @ 14:07:21 Sessions 1 Manual Loads 0 Difficulty Rogue Special Mode None Game No. 6 Rogue 6 Adventurer 0 Explorer 0 Win Type - Total 0 Types 0/0/0/0/0/0/0/0/0/0 Lore% 3 Gallery% 12 Achievement% 11 Wizard Run 0 Options --------- Layout 1 ASCII 0 Keyboard 0 Movement Mouse Keybinds 1 Fullscreen 2 Font 24/Smallcaps Map View 50x40 Zoom Use 0% Tactical HUD 0 Map Filters NONE Filters NONE Steam 1 RUN: 9cd6114f-987a-4480-bba9-d9978b958a98